[Event "Early-Titled-Tuesday-Blitz-October-10-2023"]
[Site "Chess.com"]
[Date "2023.10.10"]
[Round "7"]
[White "Beca95"]
[Black "borocotoajua"]
[Result "1-0"]
[WhiteElo "2878"]
[BlackElo "2578"]
[TimeControl "180+1"]
[EndTime "9:15:01 PDT"]
[Termination "Beca95 won on time"]

1. e4 {[%clk 0:02:58.8]} 1... c6 {[%clk 0:02:55.4]} 2. d4 {[%clk 0:02:57.7]}
2... d5 {[%clk 0:02:55.4]} 3. e5 {[%clk 0:02:58.3]} 3... c5 {[%clk 0:02:55.5]}
4. Nf3 {[%clk 0:02:56.8]} 4... Nc6 {[%clk 0:02:51.6]} 5. dxc5 {[%clk 0:02:48.9]}
5... Bg4 {[%clk 0:02:50.9]} 6. c3 {[%clk 0:02:38.7]} 6... e6 {[%clk 0:02:44.3]}
7. b4 {[%clk 0:02:34.1]} 7... Nge7 {[%clk 0:02:28.7]} 8. Bb5 {[%clk 0:02:31.5]}
8... Ng6 {[%clk 0:02:21.2]} 9. Nbd2 {[%clk 0:02:30.2]} 9... Qc7 {[%clk 0:02:15]}
10. h3 {[%clk 0:02:26.5]} 10... Bf5 {[%clk 0:01:36.5]} 11. O-O {[%clk
0:02:24.5]} 11... Be7 {[%clk 0:01:34.4]} 12. Re1 {[%clk 0:02:23.6]} 12... O-O
{[%clk 0:01:10.8]} 13. g4 {[%clk 0:02:22.4]} 13... Be4 {[%clk 0:01:08.3]} 14.
Nxe4 {[%clk 0:02:22.4]} 14... dxe4 {[%clk 0:01:09.2]} 15. Rxe4 {[%clk
0:02:22.2]} 15... a5 {[%clk 0:01:04.9]} 16. Qe2 {[%clk 0:02:19.8]} 16... Rfd8
{[%clk 0:00:58.8]} 17. a3 {[%clk 0:02:10.7]} 17... Bf8 {[%clk 0:00:34.6]} 18. h4
{[%clk 0:02:05.1]} 18... Nge7 {[%clk 0:00:34.6]} 19. h5 {[%clk 0:01:59.7]} 19...
Nd5 {[%clk 0:00:35.1]} 20. Bd2 {[%clk 0:01:59]} 20... b6 {[%clk 0:00:31.4]} 21.
cxb6 {[%clk 0:01:53.5]} 21... Qxb6 {[%clk 0:00:32.3]} 22. Rc1 {[%clk 0:01:42.2]}
22... Rab8 {[%clk 0:00:27.8]} 23. Bc4 {[%clk 0:01:40.4]} 23... Nce7 {[%clk
0:00:24.9]} 24. Bd3 {[%clk 0:01:34.8]} 24... Rbc8 {[%clk 0:00:21.9]} 25. Rd4
{[%clk 0:01:32.3]} 25... h6 {[%clk 0:00:20.5]} 26. Qe4 {[%clk 0:01:29.6]} 26...
f5 {[%clk 0:00:19.2]} 27. exf6 {[%clk 0:01:26.6]} 27... Nxf6 {[%clk 0:00:19.3]}
28. Qe2 {[%clk 0:01:24.2]} 28... Ned5 {[%clk 0:00:13.4]} 29. c4 {[%clk
0:01:18.9]} 29... Ne7 {[%clk 0:00:11]} 30. c5 {[%clk 0:01:19.1]} 30... Qc6
{[%clk 0:00:07.9]} 31. Ne5 {[%clk 0:01:18]} 31... Qa8 {[%clk 0:00:06.7]} 32.
Rxd8 {[%clk 0:01:14.8]} 32... Rxd8 {[%clk 0:00:07.6]} 33. Bc4 {[%clk 0:01:14.6]}
33... Ned5 {[%clk 0:00:08]} 34. Ng6 {[%clk 0:01:04.4]} 34... axb4 {[%clk
0:00:06.6]} 35. Qxe6+ {[%clk 0:01:02.7]} 35... Kh7 {[%clk 0:00:07]} 36. Bd3
{[%clk 0:01:02.6]} 36... Nc7 {[%clk 0:00:04.4]} 37. Nxf8+ {[%clk 0:01:01.1]}
37... Kh8 {[%clk 0:00:03.7]} 38. Ng6+ {[%clk 0:01:01.3]} 38... Kh7 {[%clk
0:00:03.8]} 39. Qe2 {[%clk 0:01:01.2]} 39... Kg8 {[%clk 0:00:02.1]} 40. axb4
{[%clk 0:00:57.6]} 40... Ncd5 {[%clk 0:00:01.8]} 41. Bc4 {[%clk 0:00:56.9]} 1-0

[Event "Early-Titled-Tuesday-Blitz-October-10-2023"]
[Site "Chess.com"]
[Date "2023.10.10"]
[Round "7"]
[White "GeorgiosSouleidis"]
[Black "Fandorine"]
[Result "0-1"]
[WhiteElo "2648"]
[BlackElo "2908"]
[TimeControl "180+1"]
[EndTime "9:15:02 PDT"]
[Termination "Fandorine won on time"]

1. e4 {[%clk 0:03:00.9]} 1... g6 {[%clk 0:02:57.9]} 2. d4 {[%clk 0:02:57.6]}
2... Bg7 {[%clk 0:02:58.1]} 3. Nc3 {[%clk 0:02:58.1]} 3... d6 {[%clk 0:02:58.4]}
4. Nf3 {[%clk 0:02:58.4]} 4... Nf6 {[%clk 0:02:58.8]} 5. Be2 {[%clk 0:02:58]}
5... O-O {[%clk 0:02:59.5]} 6. O-O {[%clk 0:02:58.3]} 6... Nbd7 {[%clk
0:03:00.2]} 7. Re1 {[%clk 0:02:48.9]} 7... e5 {[%clk 0:02:57.7]} 8. dxe5 {[%clk
0:02:43.4]} 8... dxe5 {[%clk 0:02:56]} 9. Bc4 {[%clk 0:02:14.8]} 9... Qe7 {[%clk
0:02:44.6]} 10. a4 {[%clk 0:02:10.5]} 10... Nb6 {[%clk 0:02:36.6]} 11. Bb3
{[%clk 0:02:08.8]} 11... Be6 {[%clk 0:02:32.5]} 12. Bxe6 {[%clk 0:02:01]} 12...
Qxe6 {[%clk 0:02:32.4]} 13. a5 {[%clk 0:01:58.2]} 13... Nc4 {[%clk 0:02:28.4]}
14. b3 {[%clk 0:01:57.2]} 14... Rfd8 {[%clk 0:02:23.7]} 15. Qe2 {[%clk
0:01:57.4]} 15... Nd6 {[%clk 0:02:24.4]} 16. a6 {[%clk 0:01:34.6]} 16... b6
{[%clk 0:02:20.1]} 17. Bg5 {[%clk 0:01:33.3]} 17... c6 {[%clk 0:02:15.5]} 18.
Rad1 {[%clk 0:01:30.1]} 18... h6 {[%clk 0:02:15.6]} 19. Bxf6 {[%clk 0:01:29.6]}
19... Bxf6 {[%clk 0:02:15.9]} 20. Rd2 {[%clk 0:01:23.3]} 20... Ne8 {[%clk
0:02:02]} 21. Rxd8 {[%clk 0:01:20]} 21... Rxd8 {[%clk 0:02:02.9]} 22. Rd1 {[%clk
0:01:20.4]} 22... Nc7 {[%clk 0:01:57.3]} 23. Rxd8+ {[%clk 0:01:18.8]} 23... Bxd8
{[%clk 0:01:57.4]} 24. Qd2 {[%clk 0:01:12.1]} 24... Bf6 {[%clk 0:01:42.5]} 25.
Qxh6 {[%clk 0:01:09.6]} 25... Nxa6 {[%clk 0:01:42.7]} 26. Ng5 {[%clk 0:00:38.4]}
26... Bxg5 {[%clk 0:01:31.6]} 27. Qxg5 {[%clk 0:00:39.3]} 27... Qd6 {[%clk
0:01:30.3]} 28. h4 {[%clk 0:00:34.2]} 28... Nc7 {[%clk 0:01:19]} 29. h5 {[%clk
0:00:31.3]} 29... Ne6 {[%clk 0:01:19.6]} 30. Qf6 {[%clk 0:00:22.1]} 30... gxh5
{[%clk 0:01:14.2]} 31. Kh2 {[%clk 0:00:18]} 31... Qd4 {[%clk 0:01:02.4]} 32. Qf3
{[%clk 0:00:05.7]} 32... Kf8 {[%clk 0:00:57.9]} 33. Ne2 {[%clk 0:00:03.9]} 33...
Qd2 {[%clk 0:00:56.7]} 34. Ng3 {[%clk 0:00:03]} 34... h4 {[%clk 0:00:43.6]} 35.
Nf5 {[%clk 0:00:03.2]} 35... Qf4+ {[%clk 0:00:38.8]} 36. Qxf4 {[%clk 0:00:03.6]}
36... exf4 {[%clk 0:00:39.5]} 0-1

[Event "Early-Titled-Tuesday-Blitz-October-10-2023"]
[Site "Chess.com"]
[Date "2023.10.10"]
[Round "7"]
[White "DenLaz"]
[Black "ozates"]
[Result "1-0"]
[WhiteElo "3059"]
[BlackElo "2764"]
[TimeControl "180+1"]
[EndTime "9:15:07 PDT"]
[Termination "DenLaz won by resignation"]

1. d4 {[%clk 0:03:00.9]} 1... Nf6 {[%clk 0:02:58.8]} 2. c4 {[%clk 0:03:01.4]}
2... e6 {[%clk 0:02:58.7]} 3. Nc3 {[%clk 0:03:01.9]} 3... d5 {[%clk 0:02:58.7]}
4. cxd5 {[%clk 0:03:01.8]} 4... Nxd5 {[%clk 0:02:58.2]} 5. e4 {[%clk 0:03:01.7]}
5... Nxc3 {[%clk 0:02:58.2]} 6. bxc3 {[%clk 0:03:02.6]} 6... c5 {[%clk
0:02:58.3]} 7. Nf3 {[%clk 0:03:02.8]} 7... cxd4 {[%clk 0:02:59.2]} 8. cxd4
{[%clk 0:03:03.5]} 8... Bb4+ {[%clk 0:02:59.7]} 9. Bd2 {[%clk 0:03:04]} 9...
Bxd2+ {[%clk 0:03:00.6]} 10. Qxd2 {[%clk 0:03:04.9]} 10... O-O {[%clk
0:03:00.7]} 11. Bc4 {[%clk 0:03:04.6]} 11... Nd7 {[%clk 0:03:01.2]} 12. O-O
{[%clk 0:03:04.6]} 12... b6 {[%clk 0:03:01.8]} 13. Rfe1 {[%clk 0:03:04.6]} 13...
Bb7 {[%clk 0:03:02.3]} 14. Rad1 {[%clk 0:03:05.2]} 14... Rc8 {[%clk 0:03:02.3]}
15. Bb3 {[%clk 0:03:04.2]} 15... Re8 {[%clk 0:03:01.1]} 16. Re3 {[%clk
0:03:03.8]} 16... b5 {[%clk 0:02:39.3]} 17. d5 {[%clk 0:02:47.5]} 17... Nc5
{[%clk 0:02:36.1]} 18. Bc2 {[%clk 0:02:43.9]} 18... exd5 {[%clk 0:02:25]} 19.
exd5 {[%clk 0:02:43.5]} 19... Qd6 {[%clk 0:02:22.9]} 20. Qd4 {[%clk 0:01:54.7]}
20... h6 {[%clk 0:01:55]} 21. Bf5 {[%clk 0:01:50.6]} 21... Rcd8 {[%clk
0:01:50.3]} 22. Rxe8+ {[%clk 0:01:42.6]} 22... Rxe8 {[%clk 0:01:50.1]} 23. h3
{[%clk 0:01:41.2]} 23... a5 {[%clk 0:01:39.7]} 24. Bb1 {[%clk 0:01:32.3]} 24...
b4 {[%clk 0:01:30.7]} 25. Nh4 {[%clk 0:01:23.5]} 25... Re5 {[%clk 0:00:36.6]}
26. Nf5 {[%clk 0:01:17.9]} 26... Qxd5 {[%clk 0:00:20.2]} 27. Qxd5 {[%clk
0:01:08.5]} 27... Bxd5 {[%clk 0:00:19.4]} 28. Rxd5 {[%clk 0:01:08.5]} 28... Re1+
{[%clk 0:00:18.9]} 29. Kh2 {[%clk 0:01:08.5]} 29... Rxb1 {[%clk 0:00:19.6]} 30.
Rxc5 {[%clk 0:01:08.7]} 30... a4 {[%clk 0:00:17.6]} 31. Ra5 {[%clk 0:01:08.9]}
31... a3 {[%clk 0:00:16.5]} 32. Nd4 {[%clk 0:00:44.3]} 32... Rb2 {[%clk
0:00:16.6]} 33. Nc6 {[%clk 0:00:43.5]} 33... Rb1 {[%clk 0:00:04.6]} 34. Ra4
{[%clk 0:00:41.4]} 34... Rb2 {[%clk 0:00:03.2]} 35. Nxb4 {[%clk 0:00:40.9]}
35... Rxf2 {[%clk 0:00:02.9]} 36. Rxa3 {[%clk 0:00:41.1]} 36... Rb2 {[%clk
0:00:03.3]} 37. Rb3 {[%clk 0:00:41.4]} 37... Rd2 {[%clk 0:00:02.8]} 38. a4
{[%clk 0:00:41.7]} 38... f5 {[%clk 0:00:03.5]} 39. a5 {[%clk 0:00:41.6]} 39...
g5 {[%clk 0:00:04.4]} 40. a6 {[%clk 0:00:41.7]} 1-0

[Event "Early-Titled-Tuesday-Blitz-October-10-2023"]
[Site "Chess.com"]
[Date "2023.10.10"]
[Round "7"]
[White "DerKnipser"]
[Black "jaskol95"]
[Result "1/2-1/2"]
[WhiteElo "2467"]
[BlackElo "2590"]
[TimeControl "180+1"]
[EndTime "9:15:08 PDT"]
[Termination "Game drawn by repetition"]

1. e4 {[%clk 0:02:59.7]} 1... d5 {[%clk 0:03:00.1]} 2. exd5 {[%clk 0:02:58.6]}
2... Nf6 {[%clk 0:03:00.8]} 3. Nc3 {[%clk 0:02:58.6]} 3... Nxd5 {[%clk
0:03:01.1]} 4. Nf3 {[%clk 0:02:56.8]} 4... Nxc3 {[%clk 0:03:01.4]} 5. bxc3
{[%clk 0:02:55.9]} 5... g6 {[%clk 0:03:02]} 6. d4 {[%clk 0:02:56.1]} 6... Bg7
{[%clk 0:03:02.3]} 7. Bc4 {[%clk 0:02:54.6]} 7... O-O {[%clk 0:03:02.5]} 8. O-O
{[%clk 0:02:54.1]} 8... c5 {[%clk 0:03:02.3]} 9. Re1 {[%clk 0:02:52]} 9... Nc6
{[%clk 0:02:55.2]} 10. Bg5 {[%clk 0:02:48.1]} 10... Bg4 {[%clk 0:02:17]} 11. h3
{[%clk 0:02:29.6]} 11... Bxf3 {[%clk 0:02:16.7]} 12. Qxf3 {[%clk 0:02:30.2]}
12... cxd4 {[%clk 0:02:16]} 13. cxd4 {[%clk 0:02:16.6]} 13... Nxd4 {[%clk
0:02:03.7]} 14. Qe4 {[%clk 0:02:08.6]} 14... Qc7 {[%clk 0:01:48.8]} 15. c3
{[%clk 0:01:56.1]} 15... Qxc4 {[%clk 0:01:30]} 16. cxd4 {[%clk 0:01:54.8]} 16...
e6 {[%clk 0:01:23.3]} 17. Qxb7 {[%clk 0:01:48.8]} 17... Qxd4 {[%clk 0:01:21.6]}
18. Rad1 {[%clk 0:01:44.6]} 18... Qb6 {[%clk 0:01:19.7]} 19. Qf3 {[%clk
0:01:38.8]} 19... Qa5 {[%clk 0:01:10.9]} 20. Be7 {[%clk 0:01:19]} 20... Rfe8
{[%clk 0:01:10.6]} 21. a3 {[%clk 0:01:12.5]} 21... Rac8 {[%clk 0:01:08.9]} 22.
Bb4 {[%clk 0:01:10.1]} 22... Qa4 {[%clk 0:01:06.5]} 23. Rc1 {[%clk 0:01:02]}
23... a5 {[%clk 0:00:58.1]} 24. Rxc8 {[%clk 0:00:58.3]} 24... Rxc8 {[%clk
0:00:57.8]} 25. Qb7 {[%clk 0:00:58.8]} 25... Re8 {[%clk 0:00:26.3]} 26. Qa6
{[%clk 0:00:58.7]} 26... Bd4 {[%clk 0:00:22.8]} 27. Qxa5 {[%clk 0:00:52.7]}
27... Qc2 {[%clk 0:00:22.5]} 28. Qb5 {[%clk 0:00:50.7]} 28... Qxf2+ {[%clk
0:00:22.4]} 29. Kh2 {[%clk 0:00:47.5]} 29... Rc8 {[%clk 0:00:17.6]} 30. Rf1
{[%clk 0:00:46.6]} 30... Qe3 {[%clk 0:00:14.5]} 31. Bd6 {[%clk 0:00:40.2]} 31...
Rd8 {[%clk 0:00:05.1]} 32. Qb7 {[%clk 0:00:36.2]} 32... f5 {[%clk 0:00:03.9]}
33. Qe7 {[%clk 0:00:33.8]} 33... Rxd6 {[%clk 0:00:04.3]} 34. Qe8+ {[%clk
0:00:31.6]} 34... Kg7 {[%clk 0:00:04.8]} 35. Qe7+ {[%clk 0:00:32.3]} 35... Kh6
{[%clk 0:00:04.3]} 36. Qh4+ {[%clk 0:00:32.4]} 36... Kg7 {[%clk 0:00:04.8]} 37.
Qe7+ {[%clk 0:00:32.9]} 37... Kg8 {[%clk 0:00:05.4]} 38. Qe8+ {[%clk 0:00:33.4]}
38... Kg7 {[%clk 0:00:05.7]} 39. Qe7+ {[%clk 0:00:34]} 1/2-1/2

[Event "Early-Titled-Tuesday-Blitz-October-10-2023"]
[Site "Chess.com"]
[Date "2023.10.10"]
[Round "7"]
[White "Politov_Pavel"]
[Black "Mystery2007"]
[Result "0-1"]
[WhiteElo "2085"]
[BlackElo "2481"]
[TimeControl "180+1"]
[EndTime "9:15:10 PDT"]
[Termination "Mystery2007 won on time"]

1. e4 {[%clk 0:03:00.9]} 1... c5 {[%clk 0:02:59.5]} 2. Nf3 {[%clk 0:03:00.1]}
2... b6 {[%clk 0:02:59]} 3. d4 {[%clk 0:02:57.6]} 3... cxd4 {[%clk 0:02:59.9]}
4. Nxd4 {[%clk 0:02:56.9]} 4... Bb7 {[%clk 0:03:00.5]} 5. Bd3 {[%clk 0:02:53.5]}
5... a6 {[%clk 0:03:01]} 6. O-O {[%clk 0:02:46.8]} 6... e6 {[%clk 0:03:01.1]} 7.
Be3 {[%clk 0:02:43.4]} 7... d6 {[%clk 0:03:01.2]} 8. Kh1 {[%clk 0:02:41.7]} 8...
Nf6 {[%clk 0:03:01.8]} 9. f4 {[%clk 0:02:41.3]} 9... Nxe4 {[%clk 0:03:00.2]} 10.
f5 {[%clk 0:02:07.7]} 10... e5 {[%clk 0:02:58.6]} 11. Ne6 {[%clk 0:01:43.9]}
11... fxe6 {[%clk 0:02:15.7]} 12. Qh5+ {[%clk 0:01:34.6]} 12... Kd7 {[%clk
0:02:09.1]} 13. fxe6+ {[%clk 0:01:15.4]} 13... Kc8 {[%clk 0:02:00.4]} 14. Bxe4
{[%clk 0:00:39.2]} 14... Bxe4 {[%clk 0:01:59.4]} 15. Qg4 {[%clk 0:00:38.4]}
15... Bxg2+ {[%clk 0:01:04.4]} 16. Kxg2 {[%clk 0:00:17]} 16... Kb7 {[%clk
0:01:00.6]} 17. Qf3+ {[%clk 0:00:13]} 17... Nc6 {[%clk 0:00:46]} 18. Nc3 {[%clk
0:00:09]} 18... Be7 {[%clk 0:00:37.4]} 19. Qd5 {[%clk 0:00:07.2]} 19... Rf8
{[%clk 0:00:30.3]} 20. Rf7 {[%clk 0:00:05.6]} 20... Rxf7 {[%clk 0:00:17.6]} 21.
exf7 {[%clk 0:00:05.9]} 21... Qd7 {[%clk 0:00:18.2]} 22. Rf1 {[%clk 0:00:04.1]}
22... Qg4+ {[%clk 0:00:17.3]} 23. Kh1 {[%clk 0:00:03]} 23... Rf8 {[%clk
0:00:17.6]} 24. Ne4 {[%clk 0:00:02.3]} 24... Qe2 {[%clk 0:00:14.1]} 25. Nxd6+
{[%clk 0:00:01.5]} 25... Bxd6 {[%clk 0:00:13.8]} 0-1

[Event "Early-Titled-Tuesday-Blitz-October-10-2023"]
[Site "Chess.com"]
[Date "2023.10.10"]
[Round "7"]
[White "wannabe2700"]
[Black "kacprekt"]
[Result "0-1"]
[WhiteElo "2643"]
[BlackElo "2480"]
[TimeControl "180+1"]
[EndTime "9:15:11 PDT"]
[Termination "kacprekt won by resignation"]

1. Nf3 {[%clk 0:03:00.9]} 1... Nf6 {[%clk 0:02:58.7]} 2. Ne5 {[%clk 0:03:01.2]}
2... d6 {[%clk 0:02:58]} 3. Nxf7 {[%clk 0:03:02.1]} 3... Kxf7 {[%clk 0:02:57.9]}
4. e4 {[%clk 0:03:02.8]} 4... e6 {[%clk 0:02:57.3]} 5. Nc3 {[%clk 0:03:02.4]}
5... Nbd7 {[%clk 0:02:56.7]} 6. d4 {[%clk 0:03:03]} 6... g6 {[%clk 0:02:53.6]}
7. f4 {[%clk 0:02:59.8]} 7... Bg7 {[%clk 0:02:53.7]} 8. e5 {[%clk 0:02:58.4]}
8... Nh5 {[%clk 0:02:49.1]} 9. Qf3 {[%clk 0:02:47.3]} 9... Rf8 {[%clk
0:01:53.8]} 10. g4 {[%clk 0:02:44.2]} 10... Qh4+ {[%clk 0:01:50.2]} 11. Ke2
{[%clk 0:02:34.3]} 11... Nxf4+ {[%clk 0:01:46]} 12. Bxf4 {[%clk 0:02:29.9]}
12... Kg8 {[%clk 0:01:46.1]} 13. Qg3 {[%clk 0:02:09.5]} 13... Qxg3 {[%clk
0:01:39.8]} 14. Bxg3 {[%clk 0:02:10.4]} 14... dxe5 {[%clk 0:01:39.9]} 15. Ne4
{[%clk 0:02:08.8]} 15... exd4 {[%clk 0:01:33.5]} 16. Bxc7 {[%clk 0:02:07.8]}
16... Nf6 {[%clk 0:01:29.5]} 17. Nxf6+ {[%clk 0:02:01.6]} 17... Bxf6 {[%clk
0:01:29.5]} 18. Bg2 {[%clk 0:01:57.8]} 18... e5 {[%clk 0:01:25.6]} 19. h3 {[%clk
0:01:57.7]} 19... Kg7 {[%clk 0:01:15.7]} 20. c3 {[%clk 0:01:55.3]} 20... Be6
{[%clk 0:01:09.2]} 21. Bxb7 {[%clk 0:01:52.1]} 21... Rae8 {[%clk 0:01:06.8]} 22.
Bd6 {[%clk 0:01:42]} 22... Bc4+ {[%clk 0:01:02.1]} 23. Kd1 {[%clk 0:01:35.7]}
23... Rf7 {[%clk 0:00:58.1]} 24. Be4 {[%clk 0:01:26.6]} 24... Rd8 {[%clk
0:00:56.4]} 25. Ba3 {[%clk 0:01:06.4]} 25... Bg5 {[%clk 0:00:47.6]} 26. b3
{[%clk 0:00:45.3]} 26... dxc3+ {[%clk 0:00:30.2]} 27. Kc2 {[%clk 0:00:45]} 27...
Rf2+ {[%clk 0:00:21.5]} 28. Kb1 {[%clk 0:00:43.4]} 28... Rdd2 {[%clk 0:00:16]}
29. Kc1 {[%clk 0:00:19.6]} 29... Rxa2+ {[%clk 0:00:10.8]} 30. Kb1 {[%clk
0:00:19.8]} 30... Rfb2+ {[%clk 0:00:08.8]} 0-1

[Event "Early-Titled-Tuesday-Blitz-October-10-2023"]
[Site "Chess.com"]
[Date "2023.10.10"]
[Round "7"]
[White "IngOscarArdila"]
[Black "Tonychess32"]
[Result "0-1"]
[WhiteElo "2315"]
[BlackElo "2496"]
[TimeControl "180+1"]
[EndTime "9:15:13 PDT"]
[Termination "Tonychess32 won by resignation"]

1. d4 {[%clk 0:03:00.2]} 1... e6 {[%clk 0:02:59.4]} 2. c4 {[%clk 0:03:00]} 2...
Nf6 {[%clk 0:02:59.6]} 3. Nc3 {[%clk 0:02:59.5]} 3... d5 {[%clk 0:02:59.3]} 4.
Bg5 {[%clk 0:02:59.1]} 4... Be7 {[%clk 0:02:59.1]} 5. Nf3 {[%clk 0:02:59]} 5...
Ne4 {[%clk 0:02:59]} 6. Bxe7 {[%clk 0:02:56.8]} 6... Qxe7 {[%clk 0:02:59.9]} 7.
Nxe4 {[%clk 0:02:57.1]} 7... dxe4 {[%clk 0:02:59.8]} 8. Nd2 {[%clk 0:02:57.7]}
8... f5 {[%clk 0:02:57.7]} 9. e3 {[%clk 0:02:56.3]} 9... O-O {[%clk 0:02:56.6]}
10. Qc2 {[%clk 0:02:55.7]} 10... Nd7 {[%clk 0:02:53]} 11. g3 {[%clk 0:02:55.5]}
11... e5 {[%clk 0:02:49.6]} 12. O-O-O {[%clk 0:02:51.9]} 12... exd4 {[%clk
0:02:49.7]} 13. exd4 {[%clk 0:02:52]} 13... c5 {[%clk 0:02:47.8]} 14. Nb3 {[%clk
0:02:50.2]} 14... cxd4 {[%clk 0:02:46.9]} 15. Nxd4 {[%clk 0:02:50.1]} 15... Nc5
{[%clk 0:02:44.3]} 16. Kb1 {[%clk 0:02:45.2]} 16... Bd7 {[%clk 0:02:43.2]} 17.
Be2 {[%clk 0:02:44.2]} 17... Rac8 {[%clk 0:02:42.6]} 18. b3 {[%clk 0:02:43.8]}
18... Ne6 {[%clk 0:02:12.2]} 19. Qb2 {[%clk 0:02:42.4]} 19... a6 {[%clk
0:02:07.2]} 20. Nxe6 {[%clk 0:02:35]} 20... Qxe6 {[%clk 0:02:06.9]} 21. Rd4
{[%clk 0:02:31.5]} 21... Bc6 {[%clk 0:01:59.2]} 22. Rhd1 {[%clk 0:02:30.7]}
22... f4 {[%clk 0:01:54.4]} 23. Rd6 {[%clk 0:02:30]} 23... Qe7 {[%clk
0:01:51.9]} 24. Bg4 {[%clk 0:02:28.9]} 24... Rcd8 {[%clk 0:01:40.9]} 25. Rxd8
{[%clk 0:01:54.3]} 25... Rxd8 {[%clk 0:01:40.1]} 26. Rxd8+ {[%clk 0:01:55]}
26... Qxd8 {[%clk 0:01:40.1]} 27. gxf4 {[%clk 0:01:55.5]} 27... Qd3+ {[%clk
0:01:39.6]} 28. Qc2 {[%clk 0:01:55.8]} 28... Qf1+ {[%clk 0:01:21.1]} 29. Kb2
{[%clk 0:01:55.4]} 29... Qg2 {[%clk 0:01:10.5]} 30. Be6+ {[%clk 0:01:55.1]}
30... Kf8 {[%clk 0:01:10.8]} 31. Qd2 {[%clk 0:01:52.1]} 31... Ke7 {[%clk
0:01:08]} 32. f5 {[%clk 0:01:40.4]} 32... Qxh2 {[%clk 0:00:41.3]} 33. Qd4 {[%clk
0:01:40.3]} 33... Qg2 {[%clk 0:00:34.1]} 34. c5 {[%clk 0:01:37.2]} 34... Qg5
{[%clk 0:00:21.4]} 35. Qd6+ {[%clk 0:01:34.2]} 35... Ke8 {[%clk 0:00:21.8]} 36.
Qd4 {[%clk 0:01:12.9]} 36... Qf6 {[%clk 0:00:14.4]} 37. Kc3 {[%clk 0:01:13.2]}
37... Ke7 {[%clk 0:00:12.7]} 38. a4 {[%clk 0:01:05.4]} 38... h5 {[%clk
0:00:11.6]} 39. Qxf6+ {[%clk 0:00:41.9]} 39... Kxf6 {[%clk 0:00:11.7]} 40. Kd2
{[%clk 0:00:42.8]} 40... h4 {[%clk 0:00:11.5]} 41. Ke1 {[%clk 0:00:40.2]} 41...
h3 {[%clk 0:00:11.6]} 42. Kf1 {[%clk 0:00:40.6]} 42... e3 {[%clk 0:00:11.7]} 43.
Kg1 {[%clk 0:00:36.6]} 43... exf2+ {[%clk 0:00:10.2]} 44. Kxf2 {[%clk
0:00:35.7]} 44... h2 {[%clk 0:00:10.6]} 0-1

[Event "Early-Titled-Tuesday-Blitz-October-10-2023"]
[Site "Chess.com"]
[Date "2023.10.10"]
[Round "7"]
[White "tdf98pantani"]
[Black "GalaxyRoman"]
[Result "1-0"]
[WhiteElo "2648"]
[BlackElo "2788"]
[TimeControl "180+1"]
[EndTime "9:15:15 PDT"]
[Termination "tdf98pantani won on time"]

1. d4 {[%clk 0:02:57.2]} 1... Nf6 {[%clk 0:02:58.7]} 2. c4 {[%clk 0:02:56.8]}
2... e6 {[%clk 0:02:56]} 3. Nc3 {[%clk 0:02:56.5]} 3... Bb4 {[%clk 0:02:45.1]}
4. Qc2 {[%clk 0:02:50.2]} 4... O-O {[%clk 0:02:43.9]} 5. Nf3 {[%clk 0:02:44.4]}
5... b6 {[%clk 0:02:38.2]} 6. Bg5 {[%clk 0:02:43.1]} 6... Bb7 {[%clk 0:02:34.3]}
7. Nd2 {[%clk 0:02:41.8]} 7... h6 {[%clk 0:02:32.6]} 8. Bh4 {[%clk 0:02:40.8]}
8... d6 {[%clk 0:02:26.7]} 9. e3 {[%clk 0:02:39.7]} 9... c5 {[%clk 0:02:23.6]}
10. Bd3 {[%clk 0:02:22.6]} 10... cxd4 {[%clk 0:01:36]} 11. exd4 {[%clk
0:02:21.9]} 11... Nc6 {[%clk 0:01:34]} 12. Nb3 {[%clk 0:01:52.9]} 12... e5
{[%clk 0:01:28.1]} 13. O-O {[%clk 0:01:41.2]} 13... Nxd4 {[%clk 0:01:18.9]} 14.
Nxd4 {[%clk 0:01:40.4]} 14... exd4 {[%clk 0:01:18.9]} 15. Be4 {[%clk 0:01:15.6]}
15... dxc3 {[%clk 0:01:03.8]} 16. Bxb7 {[%clk 0:01:14.4]} 16... cxb2 {[%clk
0:00:56.4]} 17. Qxb2 {[%clk 0:01:10.1]} 17... Rb8 {[%clk 0:00:56.3]} 18. Bd5
{[%clk 0:01:00.2]} 18... Bc5 {[%clk 0:00:54.7]} 19. Qc2 {[%clk 0:00:45.3]} 19...
Re8 {[%clk 0:00:39.2]} 20. Rae1 {[%clk 0:00:33.9]} 20... Rxe1 {[%clk 0:00:20.7]}
21. Rxe1 {[%clk 0:00:33.7]} 21... Bd4 {[%clk 0:00:14.9]} 22. Qd2 {[%clk
0:00:26.2]} 22... Bc5 {[%clk 0:00:08.3]} 23. Qd3 {[%clk 0:00:20.3]} 23... Kh8
{[%clk 0:00:02.2]} 24. Bxf7 {[%clk 0:00:18.8]} 24... Qf8 {[%clk 0:00:02.3]} 25.
Qg6 {[%clk 0:00:13.2]} 25... Nh7 {[%clk 0:00:01.5]} 26. Be7 {[%clk 0:00:08.6]}
26... Qc8 {[%clk 0:00:01.2]} 27. Bd5 {[%clk 0:00:07]} 1-0